[Event "Romanian Rapid Open 2022"]
[Site "Sebes"]
[Date "2022.12.02"]
[Round "6.16"]
[White "Talu, Mircea"]
[Black "Dragomirescu, Calin"]
[Result "1-0"]
[ECO "E60"]
[WhiteElo "2327"]
[BlackElo "1971"]
[Annotator "TA"]
[PlyCount "65"]
[EventDate "2022.12.02"]
[EventType "rapid"]
[EventCountry "ROU"]
[SourceTitle "playchess.com"]
[Source "ChessBase"]
[SourceQuality "1"]
[TimeControl "600+5"]

{[%evp 12,65,37,27,32,35,39,45,65,30,53,57,75,75,71,44,44,28,25,16,21,0,112,121,111,57,60,55,65,69,70,61,82,43,89,-10,0,-57,-35,0,35,31,56,64,60,57,53,61,58,30,30,30,6041,6041,4802,2280]} 1. Nf3 {[%emt 0:00:03]} Nf6 {[%emt 0:00:01]} 2. b3 {[%emt 0:00:01]} g6 {[%emt 0:00:03]} 3. Bb2 {[%emt 0:00:01]} Bg7 {[%emt 0:00:01]} 4. c4 {[%emt 0:00:01]} O-O {[%emt 0:00:01]} 5. g3 {[%emt 0:00:02]} d6 {[%emt 0:00:01]} 6. d4 {[%emt 0:00:01]} c6 {[%emt 0:00:08]} 7. Bg2 {[%emt 0:00:03]} Bf5 {[%emt 0:00:03] is now more promising than 7...Nbd7. E60: King's Indian: Unusual lines and Fianchetto Variation without Nc3.} 8. O-O {[%emt 0:00:10]} Qc8 {[%emt 0:00:11]} 9. Re1 {[%emt 0:00:09]} Bh3 {[%emt 0:00:07] White is slightly better.} 10. Bh1 {[%emt 0:00:02]} a5 {[%emt 0:00:04] [#]} 11. e4 $146 {[%emt 0:00:29][%cal Be2e4,Be4e5][%mdl 32]} (11. Nc3 {simplifies} h6 12. Bg2 Bxg2 13. Kxg2 Nbd7 14. e4) ({Predecessor:} 11. Nc3 Na6 12. a3 Nc7 13. e4 Re8 14. Qc2 e5 15. dxe5 dxe5 16. Na4 Nd7 17. Bg2 Bxg2 18. Kxg2 {1-0 (50) Narayanan,S (2618)-Ismagambetov,A (2528) Chess.com INT 2020}) 11... d5 {[%emt 0:00:25]} 12. e5 {[%emt 0:00:31]} Ne4 {[%emt 0:00:11]} 13. Nbd2 {[%emt 0:00:08]} (13. cxd5 {feels hotter.} cxd5 14. Nfd2 Nxd2 15. Nc3) 13... Nxd2 {[%emt 0:00:05]} 14. Qxd2 {[%emt 0:00:04]} (14. Nxd2 {simplifies} Be6 15. Rc1 Qd7 16. Bg2) 14... a4 {[%emt 0:00:19]} 15. cxd5 {[%emt 0:03:41]} cxd5 {[%emt 0:00:03]} 16. Ng5 {[%emt 0:00:03]} Be6 {[%emt 0:01:31] [#]} (16... Bh6 $1 $11) 17. Rac1 $1 $36 {[%emt 0:00:21][%cal Ba1c1,Bc1c5,Bc5b5][%mdl 2080] White is in control.} Nc6 {[%emt 0:00:12]} 18. Nxe6 {[%emt 0:00:31] White is much more active.} (18. b4 $16) 18... Qxe6 $14 {[%emt 0:00:12]} 19. Rc5 {[%emt 0:00:06]} Rfd8 {[%emt 0:00:12]} 20. Rec1 {[%emt 0:01:20]} axb3 {[%emt 0:00:16]} 21. axb3 {[%emt 0:00:09]} h5 {[%emt 0:00:23]} 22. Rb5 {[%emt 0:01:12]} (22. b4 {simplifies} Qf5 23. Rxd5 Rxd5 24. Bxd5 Qd7 25. Bxc6 bxc6 26. Qc3) 22... Ra7 {[%emt 0:00:16]} (22... Ra2 $14) 23. Rcc5 {[%emt 0:00:11]} (23. b4 $16) 23... Qf5 $11 {[%emt 0:00:39]} 24. Bxd5 {[%emt 0:00:58]} (24. Bg2 $11) 24... Ra2 {[%emt 0:00:25] [#] White must now prevent ...Qb1+.} (24... Rxd5 $5 25. Rxd5 Ra2 $11) 25. Rxb7 {[%emt 0:01:18]} Qb1+ {[%emt 0:00:26]} 26. Rc1 {[%emt 0:00:04]} Qxb2 {[%emt 0:00:07]} 27. Qxb2 {[%emt 0:00:02] Chess con chili.} Rxb2 {[%emt 0:00:01]} 28. Bxc6 {[%emt 0:00:03]} Rxd4 {[%emt 0:00:22]} 29. Rxe7 {[%emt 0:00:26] Hoping for Be8.} Rdd2 $1 {[%emt 0:00:56]} 30. Rf1 {[%emt 0:00:08] And now Be8 would win.} Bf8 {[%emt 0:01:12]} 31. Rd7 {[%emt 0:00:03]} Rxf2 $2 {[%emt 0:01:04][%mdl 8192]} 32. Rxf2 $18 {[%emt 0:00:01]} Bc5 {[%emt 0:00:01]} 33. Rdxf7 $1 {[%emt 0:00:05] Weighted Error Value: White=0.18 (very precise) /Black=0.17 (very precise)} 1-0

[Event "Romanian Rapid Open 2022"]
[Site "Sebes"]
[Date "2022.12.02"]
[Round "6.17"]
[White "Cosma, Elena-Luminita"]
[Black "Lupulescu, Adrian-Calin"]
[Result "1-0"]
[ECO "E08"]
[WhiteElo "2244"]
[BlackElo "1930"]
[Annotator "TA"]
[PlyCount "57"]
[EventDate "2022.12.02"]
[EventType "rapid"]
[EventCountry "ROU"]
[SourceTitle "playchess.com"]
[Source "ChessBase"]
[SourceQuality "1"]
[TimeControl "600+5"]

{[%evp 26,57,19,10,23,12,10,0,2,8,10,0,0,0,76,80,101,101,93,104,93,102,132,123,188,160,143,138,290,333,494,484,433,0]} 1. d4 {[%emt 0:00:02]} d5 {[%emt 0:00:01]} 2. c4 {[%emt 0:00:01]} e6 {[%emt 0:00:01]} 3. Nf3 {[%emt 0:00:01]} c6 {[%emt 0:00:02]} 4. Qc2 {[%emt 0:00:04]} Nf6 {[%emt 0:00:02]} 5. g3 {[%emt 0:00:02]} Nbd7 {[%emt 0:00:05]} 6. Bg2 {[%emt 0:00:03]} Be7 {[%emt 0:00:02]} 7. O-O {[%emt 0:00:03]} O-O {[%emt 0:00:02]} 8. b3 {[%emt 0:01:00]} b6 {[%emt 0:01:36]} 9. Bb2 {[%emt 0:00:35]} Bb7 {[%emt 0:00:05]} 10. Nc3 {[%emt 0:00:01]} Rc8 {[%emt 0:00:18]} 11. Rad1 {[%emt 0:00:26]} Qc7 {[%emt 0:00:42]} 12. e4 {[%emt 0:00:22]} dxe4 {[%emt 0:00:50]} 13. Nxe4 {[%emt 0:00:05]} Nxe4 {[%emt 0:00:48]} 14. Qxe4 {[%emt 0:00:02]} c5 {[%emt 0:00:11] E08: Closed Catalan: Main Line: 7 Qc2.} 15. Qe2 {[%emt 0:02:20]} cxd4 {[%emt 0:01:27]} 16. Nxd4 {[%emt 0:00:38]} Bxg2 {[%emt 0:00:22] The position is equal.} 17. Kxg2 {[%emt 0:00:02]} Qb7+ {[%emt 0:00:40]} (17... a6 {seems wilder.} 18. Nf5 Bf6 19. Bxf6 Nxf6 20. Nd4 Rfd8) 18. Qf3 {[%emt 0:01:04]} Qxf3+ {[%emt 0:00:30]} 19. Kxf3 {[%emt 0:00:08][%cal Od4f5]} Bf6 {[%emt 0:01:09] [#]} (19... Rfd8 $11) 20. Nb5 $1 $16 {[%emt 0:01:43][%csl LRa7,LRd7][%cal Bd4b5,Bb5a7,Ba7c6][%mdl 32]} Bxb2 {[%emt 0:01:29]} 21. Rxd7 {[%emt 0:00:01]} a6 {[%emt 0:00:01] [#]} 22. Na7 $146 {[%emt 0:00:18]} ({Predecessor:} 22. Nc7 Rfd8 23. Rfd1 Rxd7 24. Rxd7 g6 25. a4 a5 26. Nb5 Rb8 27. Ke3 Kg7 28. h4 {1-0 (41) Ushenina,A (2459)-Jackson,J (2311) Douglas 2016}) 22... Rc5 {[%emt 0:00:51]} 23. Rfd1 {[%emt 0:00:03]} e5 {[%emt 0:00:13]} 24. R1d5 {[%emt 0:00:16] White is more active.} Bd4 {[%emt 0:00:09]} (24... f5 $16) 25. Rxc5 {[%emt 0:00:28]} Bxc5 {[%emt 0:00:11]} 26. Nc6 {[%emt 0:00:03]} f6 $2 {[%emt 0:00:12] [#]} (26... e4+ $16 {was worth a try.} 27. Kxe4 Re8+ 28. Kf3 a5) 27. b4 $18 {[%emt 0:00:39]} Rc8 {[%emt 0:00:00]} (27... Bd4 {was called for.} 28. Ra7 a5 29. bxa5 bxa5) 28. Na7 {[%emt 0:00:01]} e4+ {[%emt 0:00:10]} 29. Kxe4 $2 {[%emt 0:01:59][%mdl 32768] Weighted Error Value: White=0.05 (flawless) /Black=0.35. Sensor Board Error (Ke4/e5)?} (29. Ke2 $18 Rb8 30. bxc5 bxc5 31. Ke3) 1-0

[Event "Romanian Rapid Open 2022"]
[Site "Sebes"]
[Date "2022.12.02"]
[Round "6.18"]
[White "Arion, Ilie"]
[Black "Anton, Teodor"]
[Result "0-1"]
[ECO "E11"]
[WhiteElo "1924"]
[BlackElo "2438"]
[Annotator "TA"]
[PlyCount "66"]
[EventDate "2022.12.02"]
[EventType "rapid"]
[EventCountry "ROU"]
[SourceTitle "playchess.com"]
[Source "ChessBase"]
[SourceQuality "1"]
[TimeControl "600+5"]

{[%evp 17,66,20,48,51,56,55,62,24,28,20,43,0,72,-34,-37,-46,-23,-96,-89,-91,-87,-107,-52,-62,-34,-27,-30,-172,-166,-159,-172,-159,-43,-128,-112,-233,-219,-220,-215,-260,0,0,0,-1124,-36,-175,0,-1382,-1186,-29998,-29999]} 1. d4 {[%emt 0:00:01]} Nf6 {[%emt 0:00:02]} 2. c4 {[%emt 0:00:03]} e6 {[%emt 0:00:01]} 3. g3 {[%emt 0:00:02]} Bb4+ {[%emt 0:00:03]} 4. Bd2 {[%emt 0:00:01]} c5 {[%emt 0:00:01]} 5. Bxb4 {[%emt 0:00:04]} cxb4 {[%emt 0:00:02]} 6. Nf3 {[%emt 0:00:02]} O-O {[%emt 0:00:04]} 7. Nbd2 {[%emt 0:00:01]} d6 {[%emt 0:00:02]} 8. Bg2 {[%emt 0:00:10]} Nc6 {[%emt 0:00:03]} 9. O-O {[%emt 0:00:02]} e5 {[%emt 0:00:02]} 10. d5 {[%emt 0:00:23] E11: Bogo-Indian.} Ne7 {[%emt 0:00:02]} 11. e4 {[%emt 0:00:01]} Bg4 {[%emt 0:00:12] [#]} 12. h3 $146 {[%emt 0:00:02] White is slightly better.} ({Predecessor:} 12. a3 bxa3 13. Rxa3 Nd7 14. Qc2 Bxf3 15. Nxf3 a5 16. Rfa1 Ra6 17. c5 dxc5 18. Bf1 {0-1 (60) Bitelmajer,M (2320)-Alza,A (2084) Buenos Aires 2006}) 12... Bxf3 {[%emt 0:00:03]} 13. Qxf3 {[%emt 0:00:17]} Nd7 {[%emt 0:00:05]} 14. Qe3 {[%emt 0:00:16]} Ng6 {[%emt 0:00:48]} (14... Qb6 $11) 15. f4 {[%emt 0:00:29]} (15. a3 $16) 15... exf4 $15 {[%emt 0:00:17]} 16. gxf4 {[%emt 0:00:02]} Re8 {[%emt 0:00:01]} (16... Qf6 $5 {[%cal Rf6b2]}) 17. Qg3 {[%emt 0:00:23]} (17. Rae1 $11) 17... Qf6 $17 {[%emt 0:00:10]} 18. Rab1 {[%emt 0:00:19]} Nc5 {[%emt 0:00:18]} 19. Qe3 {[%emt 0:00:19][%cal Oe4e5] Prevents Qd4.} b6 {[%emt 0:00:50]} (19... Nh4 $17 20. Rf2 Rac8) 20. Nb3 $15 {[%emt 0:00:22]} Nh4 {[%emt 0:00:09] And now ...Nxg2 would win. Black is more active.} 21. Nxc5 {[%emt 0:00:07]} bxc5 {[%emt 0:00:03]} 22. Kh2 {[%emt 0:00:22]} (22. Rf2 $11 {and White has nothing to worry.}) 22... Nxg2 $40 {[%emt 0:01:02][%mdl 128] Black attacks with force.} (22... Qg6 23. Bh1 $11) 23. Kxg2 {[%emt 0:00:01]} Qg6+ {[%emt 0:00:02]} 24. Kf3 {[%emt 0:00:01]} Re7 {[%emt 0:00:02]} (24... f5 $17 {[%cal Re8e4]} 25. e5 dxe5) 25. Rg1 {[%emt 0:00:07]} (25. Rbe1 $15) 25... Qh5+ $17 {[%emt 0:00:02]} 26. Kf2 {[%emt 0:00:22]} (26. Kg2 $17) 26... Qh4+ $19 {[%emt 0:00:11]} 27. Kg2 {[%emt 0:01:50]} Rae8 {[%emt 0:00:05]} 28. Rbe1 {[%emt 0:00:11] [#]} f5 $2 {[%emt 0:00:56]} (28... Rxe4 $1 $19 29. Qxe4 Rxe4 30. Rxe4 f5) 29. e5 $1 $11 {[%emt 0:00:24]} dxe5 {[%emt 0:00:03]} 30. d6 $2 {[%emt 0:00:32][%mdl 8192]} (30. Qxc5 $11 Qxf4 31. Qxb4) 30... Re6 $2 {[%emt 0:00:27]} (30... exf4 $19 31. Qf2 f3+ 32. Kxf3 Qxh3+ 33. Qg3 Qxg3+ 34. Rxg3 Rxe1) 31. fxe5 {[%emt 0:00:29] [#]} ({White has to play} 31. Qxc5 $15 Rg6+ 32. Kh2) 31... f4 $2 {[%emt 0:00:02]} ({Stronger than} 31... Qxc4 32. Qd2 $11) ({Better is} 31... Rxd6 $1 $19 32. Re2 (32. exd6 $2 {is the wrong capture.} Rxe3 33. Rxe3 Qxc4 $19) 32... Rg6+ 33. Kh2 Rxg1 34. Kxg1 Qxc4) 32. Qe4 {[%emt 0:00:26][%mdl 8192]} (32. Qf3 $11) 32... Rxe5 $19 {[%emt 0:00:29]} 33. Qxe5 {[%emt 0:00:04]} Qg3+ {[%emt 0:00:03] Weighted Error Value: White=1.03/Black=0.61} 0-1

[Event "Romanian Rapid Open 2022"]
[Site "Sebes"]
[Date "2022.12.02"]
[Round "6.19"]
[White "Danila, Tudor-Gabriel"]
[Black "Ceteras, Marius-Nicolae"]
[Result "1-0"]
[ECO "C47"]
[WhiteElo "1939"]
[BlackElo "2391"]
[Annotator "TA"]
[PlyCount "99"]
[EventDate "2022.12.02"]
[EventType "rapid"]
[EventCountry "ROU"]
[SourceTitle "playchess.com"]
[Source "ChessBase"]
[SourceQuality "1"]
[TimeControl "600+5"]

{[%evp 17,99,2,2,0,8,9,2,9,16,5,11,0,0,-16,0,0,0,0,18,0,23,29,19,19,9,33,310,308,308,289,367,175,161,161,161,164,129,112,147,135,261,258,292,282,300,300,300,300,300,300,296,293,286,254,246,231,223,231,230,192,225,132,138,77,137,77,138,138,137,130,131,77,80,84,261,261,324,277,359,8,1547,1264,1632,1419]} 1. e4 {[%emt 0:10:10]} e5 {[%emt 0:10:10]} 2. Nf3 {[%emt 0:00:05]} Nf6 3. Nc3 {[%emt 0:00:05]} Nc6 {[%emt 0:00:10]} 4. d4 {[%emt 0:00:05]} exd4 {[%emt 0:00:05]} 5. Nxd4 {[%emt 0:00:05]} Bb4 {[%emt 0:00:05]} 6. Nxc6 {[%emt 0:00:05]} bxc6 {[%emt 0:00:05]} 7. Bd3 {[%emt 0:00:05]} d5 {[%emt 0:00:05]} 8. exd5 {[%emt 0:00:05]} cxd5 {[%emt 0:00:05]} 9. O-O {[%emt 0:00:05]} O-O {[%emt 0:00:05]} 10. h3 {[%emt 0:00:05] C47: Scotch Four Knights and Four Knights with 4 g3.} h6 {[%emt 0:00:05]} 11. Qf3 {[%emt 0:00:05]} c6 {[%emt 0:00:05]} 12. Bf4 {[%emt 0:00:05] The position is equal.} Bd6 {[%emt 0:00:05]} 13. Rad1 {[%emt 0:00:05]} Re8 {[%emt 0:00:05] [#]} 14. Bxd6 $146 {[%emt 0:00:05]} (14. b3 {with more complications.} Bxf4 15. Qxf4 Nh5 16. Qd4) ({Predecessor:} 14. Ne2 Rb8 15. b3 Be6 16. Nd4 Qc7 17. Bxh6 Be5 18. Nxe6 Rxe6 19. Bc1 Rbe8 20. Bf5 {1-0 (63) Lintchevski,D (2555)-Costachi,M (2471) Chess.com INT 2021}) 14... Qxd6 {[%emt 0:00:05]} 15. Ne2 {[%emt 0:00:05]} Rb8 {[%emt 0:00:05]} (15... c5 $5) 16. b3 {[%emt 0:00:05]} a5 {[%emt 0:00:05]} 17. c4 {[%emt 0:00:05]} Be6 {[%emt 0:00:05]} 18. Nf4 {[%emt 0:00:05]} d4 {[%emt 0:00:05]} 19. c5 Qxc5 {[%emt 0:00:05]} 20. Rc1 $1 {[%emt 0:00:10][%cal Bd1c1,Bc1c6,Bc6f6][%mdl 32]} Qa3 {[%emt 0:00:05]} 21. Rxc6 {[%emt 0:00:05]} Bd7 $2 {[%emt 0:00:05][%mdl 8192] [#]} (21... Qxa2 $14 22. Nxe6 Rxe6) 22. Rxf6 $1 $18 {[%emt 0:00:05][%mdl 512]} gxf6 {[%emt 0:00:05]} 23. Nh5 {[%emt 0:00:05] Inhibits f5. Black must now prevent Qg3+.} Qd6 {[%emt 0:00:05]} 24. Nxf6+ {[%emt 0:00:05]} (24. Qxf6 $142 Qxf6 25. Nxf6+ Kg7 26. Nxd7) 24... Kg7 {[%emt 0:00:05]} 25. Nxe8+ {[%emt 0:00:05]} Rxe8 {[%emt 0:00:05]} 26. Bc4 {[%emt 0:00:05]} Be6 {[%emt 0:00:05]} 27. Bxe6 {[%emt 0:00:05]} Rxe6 $16 {[%emt 0:00:05][%mdl 4096] Endgame KQR-KQR} 28. Rd1 {[%emt 0:00:05]} Kf8 {[%emt 0:00:05] [#]} (28... Re5 $16 29. Qg3+ (29. Qg4+ Kf8 $16) 29... Kf8) 29. Qa8+ $1 $18 {[%emt 0:00:05]} Re8 {[%emt 0:00:05]} 30. Qxa5 {[%emt 0:00:05]} d3 {[%emt 0:00:05]} 31. Qc3 {[%emt 0:00:05] Inhibits Qd4. Qh8+ is the strong threat.} Rd8 {[%emt 0:00:05]} 32. b4 {[%emt 0:00:05]} d2 {[%emt 0:00:05]} 33. Qc5 {[%emt 0:00:05]} Qxc5 {[%emt 0:00:05]} 34. bxc5 {KR-KR} Ke7 35. Kf1 {[%emt 0:00:10]} Rd5 {[%emt 0:00:10]} 36. Ke2 {[%emt 0:00:05]} Rxc5 {[%emt 0:00:05]} 37. Rxd2 {[%emt 0:00:05]} ({Don't do} 37. Kxd2 Rg5 38. Rg1 Rd5+ 39. Ke3 Re5+ 40. Kf3 Ra5 41. Re1+ Kd6) 37... Ra5 {[%emt 0:00:05]} 38. Rb2 {[%emt 0:00:05]} Kf6 {[%emt 0:00:05]} 39. f4 {[%emt 0:00:05]} (39. Kd2 $18) 39... Ra3 {[%emt 0:00:05]} 40. Kf2 {[%emt 0:00:05]} (40. Kd1 $142) 40... h5 {[%emt 0:00:05]} (40... Kf5 $142) 41. Ke1 $16 {[%emt 0:00:05]} Kg6 {[%emt 0:00:05]} (41... Kf5 $142) 42. Kd1 {[%emt 0:00:05]} Kf5 {[%emt 0:00:05] [#]} 43. Rf2 {[%emt 0:00:05]} Ke4 {[%emt 0:00:05]} 44. Kc1 {[%emt 0:00:05]} (44. f5 $142) 44... f5 {[%emt 0:00:05]} 45. Kb2 {[%emt 0:00:05]} Rg3 {[%emt 0:00:05]} (45... Ra8 $16 {keeps fighting.}) 46. a4 $18 {[%emt 0:00:05]} Rg8 {[%emt 0:00:05]} 47. Kc3 {[%emt 0:00:05] And now Kc4 would win.} Ke3 {[%emt 0:00:05]} 48. Rf3+ {[%emt 0:00:05]} ({White should try} 48. Ra2 $18) 48... Ke2 $2 {[%emt 0:00:05][%mdl 8192]} (48... Ke4 $11) 49. Kd4 Rxg2 {[%emt 0:00:05]} 50. Ra3 {[%emt 0:00:10] Weighted Error Value: White=0.25 (precise) /Black=0.30} 1-0

[Event "Romanian Rapid Open 2022"]
[Site "Sebes"]
[Date "2022.12.02"]
[Round "6.20"]
[White "Tamas, Christian-Arrydan"]
[Black "Cnejev, Vladimir-Alexandru"]
[Result "0-1"]
[ECO "D36"]
[WhiteElo "1917"]
[BlackElo "2293"]
[Annotator "TA"]
[PlyCount "52"]
[EventDate "2022.12.02"]
[EventType "rapid"]
[EventCountry "ROU"]
[SourceTitle "playchess.com"]
[Source "ChessBase"]
[SourceQuality "1"]
[TimeControl "600+5"]

{[%evp 25,52,28,24,27,33,24,34,35,41,24,31,8,15,6,23,26,26,-46,20,18,56,54,97,107,118,0,0,-66,-72]} 1. d4 {[%emt 0:00:01]} d5 {[%emt 0:00:01]} 2. c4 {[%emt 0:10:14]} e6 {[%emt 0:00:01]} 3. Nc3 {[%emt 0:00:00]} Nf6 {[%emt 0:00:01]} 4. cxd5 {[%emt 0:00:00]} exd5 {[%emt 0:00:01]} 5. Bg5 {[%emt 0:00:00]} c6 {[%emt 0:00:06]} 6. e3 {[%emt 0:00:00]} Be7 {[%emt 0:00:02]} 7. Bd3 {[%emt 0:00:00]} h6 {[%emt 0:00:04]} 8. Bh4 {[%emt 0:00:00]} O-O {[%emt 0:00:04]} 9. Qc2 {[%emt 0:00:00]} Re8 {[%emt 0:00:03]} 10. Nf3 {[%emt 0:00:00]} Nbd7 {[%emt 0:01:06]} 11. O-O {[%emt 0:00:00]} Ne4 {[%emt 0:00:02]} 12. Bxe4 {[%emt 0:00:00]} Bxh4 {[%emt 0:00:23]} 13. Bh7+ {[%emt 0:00:00]} Kh8 {[%emt 0:00:09]} 14. Nxh4 {[%emt 0:00:00] D36: Queen's Gambit Declined: Exchange Variation: Main line (5 Bg5 c6 6 Qc2).} Qxh4 {[%emt 0:00:04]} 15. Bd3 {[%emt 0:00:00]} Nf6 {[%emt 0:00:04]} 16. Ne2 {[%emt 0:00:00] [#] White is slightly better. 16.Rae1 is the modern continuation.} Bd7 $146 {[%emt 0:01:39]} ({Predecessor:} 16... Ng4 17. h3 Nf6 18. Ng3 g6 19. b4 h5 20. Rfe1 Qg5 21. Kh1 Bd7 22. Rab1 Kg7 {0-1 (54) Anton Guijarro,D (2673)-Firouzja,A (2759) chess24.com INT 2021}) 17. Rab1 {[%emt 0:00:00]} Ne4 {[%emt 0:02:05]} 18. Bxe4 {[%emt 0:00:00]} Rxe4 {[%emt 0:00:09]} (18... Qxe4 {simplifies} 19. Qxe4 Rxe4 20. Rfc1 g5) 19. b4 {[%emt 0:00:00][%cal Ob4b5]} Qg5 {[%emt 0:01:05]} 20. a4 {[%emt 0:00:00]} a6 {[%emt 0:00:01]} 21. b5 {[%emt 0:00:00]} (21. Nf4 $11) 21... axb5 {[%emt 0:01:36]} (21... cxb5 $15 22. Qc7 Bc6) 22. axb5 $11 {[%emt 0:00:00]} h5 {[%emt 0:00:08][%cal Bh6h5,Bh5h4][%mdl 32]} ({Don't take} 22... cxb5 23. Qc7 Bh3 24. Qg3 $16 (24. Ng3 Re7 $16)) 23. bxc6 {[%emt 0:00:00]} bxc6 {[%emt 0:00:00]} 24. Rb7 {[%emt 0:00:00]} Rd8 {[%emt 0:00:21]} 25. Ng3 {[%emt 0:00:13] Against h4} ({Better is} 25. Nf4 $16) 25... Re7 {[%emt 0:00:48]} 26. Rfb1 {[%emt 0:01:38]} (26. f4 $11 Qg4 27. Qf2) 26... h4 {[%emt 0:00:32] Weighted Error Value: White=0.27 (precise) /Black=0.21 (precise)} 0-1

[Event "Romanian Rapid Open 2022"]
[Site "Sebes"]
[Date "2022.12.02"]
[Round "6.21"]
[White "Nastore, Pavel-Alexandru"]
[Black "Borodi, Cosmin-Alin"]
[Result "1-0"]
[ECO "D02"]
[WhiteElo "2218"]
[BlackElo "1919"]
[Annotator "TA"]
[PlyCount "85"]
[EventDate "2022.12.02"]
[EventType "rapid"]
[EventCountry "ROU"]
[SourceTitle "playchess.com"]
[Source "ChessBase"]
[SourceQuality "1"]
[TimeControl "600+5"]

{[%evp 9,84,5,6,11,33,29,34,16,16,15,23,10,19,9,23,16,39,26,30,32,50,45,47,37,127,125,122,130,139,143,137,141,132,27,30,-25,0,0,65,41,43,41,159,225,239,256,220,172,417,348,332,348,331,348,333,333,333,333,322,293,639,321,321,227,301,245,851,838,469,230,29986,29987,29997,29998,29998,29999,29999]} 1. d4 {[%emt 0:00:02]} d5 {[%emt 0:00:04]} 2. Nf3 {[%emt 0:00:02]} Bg4 {[%emt 0:00:04]} 3. g3 {[%emt 0:00:07]} Bxf3 {[%emt 0:00:04]} 4. exf3 {[%emt 0:00:01]} e6 {[%emt 0:00:09]} 5. Bg2 {[%emt 0:00:01]} Nf6 {[%emt 0:00:11]} 6. O-O {[%emt 0:00:02] D02: 1 d4 d5 2 Nf3 sidelines, including 2...Nf6 3 g3 and 2...Nf6 3 Bf4.} Nbd7 {[%emt 0:00:08]} 7. f4 {[%emt 0:00:01][%cal Oc2c4]} Be7 {[%emt 0:00:21] [#]} 8. Re1 $146 {[%emt 0:00:08][%cal Oc2c4] White is slightly better.} ({Predecessor:} 8. f5 exf5 9. Qd3 O-O 10. Qxf5 c6 11. c3 Re8 12. Bf4 Nf8 13. Nd2 Ng6 14. Bg5 {1-0 (54) Rottenwohrer Suarez,J (2196)-Demerson Joly,J (1959) Madrid 2021}) 8... O-O {[%emt 0:00:18]} 9. Nd2 {[%emt 0:00:08][%cal Bb1d2,Bd2f3,Bf3d4][%mdl 32]} c5 {[%emt 0:00:33]} 10. Nf3 {[%emt 0:00:16]} cxd4 {[%emt 0:00:21]} 11. Nxd4 {[%emt 0:00:02][%cal Oc2c4]} Bc5 {[%emt 0:00:50]} 12. Nb3 {[%emt 0:00:06]} Rc8 {[%emt 0:00:36]} 13. Nxc5 {[%emt 0:00:02]} Nxc5 {[%emt 0:00:03]} 14. Be3 {[%emt 0:00:14]} b6 {[%emt 0:00:15]} 15. Bd4 {[%emt 0:00:07]} Nce4 {[%emt 0:00:52]} 16. Rc1 {[%emt 0:00:46][%cal Oc2c4]} Rc4 {[%emt 0:00:39]} (16... Nd6 $14) 17. b3 $16 {[%emt 0:00:02]} Rc8 {[%emt 0:00:26]} 18. c4 {[%emt 0:00:04]} Nc5 {[%emt 0:00:37]} 19. Bxf6 {[%emt 0:02:19]} Qxf6 {[%emt 0:00:28]} 20. cxd5 {[%emt 0:00:01]} exd5 {[%emt 0:00:08]} 21. Qxd5 {[%emt 0:00:41]} (21. Bxd5 $16 {Hoping for b4.} a5 22. Re5) 21... Rcd8 $1 $11 {[%emt 0:00:14] [#] Against b4} 22. Rxc5 {[%emt 0:01:14]} Rxd5 {[%emt 0:01:12]} (22... bxc5 23. Qxc5) 23. Rxd5 {[%emt 0:00:02][%cal Bc5d5,Bd5d7,Bd7a7][%mdl 32]} Qb2 {[%emt 0:00:25]} ({Better is} 23... g6 $11) 24. Rd7 $14 {[%emt 0:00:11]} Qxa2 {[%emt 0:00:15]} 25. Bd5 $1 {[%emt 0:00:14][%cal Od7f7] Black must now prevent Rxf7!} Qa5 {[%emt 0:00:58] White stays focused until the end.} (25... h6 $14) 26. Ree7 $16 {[%emt 0:00:07][%csl LRa7,LRf7][%cal Re7f7]} Qa1+ {[%emt 0:00:12]} 27. Kg2 {[%emt 0:00:02][%cal Re7f7] Active counter play!} Qf6 {[%emt 0:00:06]} 28. Rxa7 {[%emt 0:01:19]} (28. Bxf7+ $6 Kh8 29. Bd5 (29. Rxa7 Qc6+ 30. Kf1 Rd8 $11) 29... a5 $16) 28... h5 $2 {[%emt 0:00:52]} (28... Kh8 {might work better.} 29. h4 (29. Rxf7 Rxf7 30. Rxf7 Qd6 $16) (29. Bxf7 Qc6+ 30. Kf1 Qh1+ 31. Ke2 Qxh2 $14) 29... b5) 29. Rxf7 {[%emt 0:01:15]} Rxf7 {[%emt 0:00:03]} 30. Rxf7 $18 {[%emt 0:00:02][%mdl 4096] Endgame KQ-KRB} ({Less strong is} 30. Bxf7+ Kf8 $16) 30... Qd4 {[%emt 0:00:21]} 31. Rf5+ {[%emt 0:00:18]} Kh7 {[%emt 0:00:11]} 32. Rxh5+ {[%emt 0:00:04]} Kg6 {[%emt 0:00:09]} 33. Rg5+ {[%emt 0:00:02]} Kf6 {[%emt 0:00:01]} 34. h4 {[%emt 0:00:06]} b5 $2 {[%emt 0:00:11]} (34... Ke7 35. Bf3 Qf6) 35. Re5 {[%emt 0:00:29] [#] h5 is the strong threat.} g6 {[%emt 0:00:09]} 36. Bc6 {[%emt 0:00:14]} b4 {[%emt 0:00:04]} 37. Bd5 {[%emt 0:00:02]} Qc3 $2 {[%emt 0:00:04]} (37... Qd3 38. h5 gxh5 39. Rxh5 Kg7) 38. Re6+ {[%emt 0:00:14]} Kg7 {[%emt 0:00:04]} 39. Re7+ {[%emt 0:00:13]} (39. Be4 $142) 39... Kh6 {[%emt 0:00:09]} (39... Kf8 $18 40. Re5 Qd4) 40. g4 {[%emt 0:00:16][%cal Bg3g4,Bg4g5][%mdl 32] White mates.} Qd4 {[%emt 0:00:18]} 41. g5+ {[%emt 0:01:54]} Kh5 42. Bf3+ {[%emt 0:00:00]} Kxh4 {[%emt 0:00:04]} 43. Rh7# {[%emt 0:00:00] Weighted Error Value: White=0.37/Black=0.60} 1-0